bitfinex-derivatives/quotes_BTCF0:USTF0_20251230
["timestamp","ask_amount","ask_price","bid_price","bid_amount"]
[1767115972345,0.02555443,88677.0,88661.0,0.011291]
[1767115972552,0.02555443,88676.0,88661.0,0.011291]
[1767115972754,0.02555443,88675.0,88661.0,0.011291]
[1767115972942,0.02555443,88674.0,88661.0,0.011291]
[1767115973146,0.0112888,88680.0,88661.0,0.011291]
[1767115973454,0.02555176,88679.0,88661.0,0.011291]
[1767115973654,0.0112888,88680.0,88661.0,0.011291]
[1767115973655,0.02555176,88678.0,88661.0,0.011291]
[1767115973857,0.02555176,88677.0,88661.0,0.011291]
[1767115974150,0.02555176,88676.0,88661.0,0.011291]
[1767115974357,0.0112888,88680.0,88661.0,0.011291]
[1767115974558,0.02555119,88679.0,88661.0,0.011291]
[1767115974857,0.02555119,88678.0,88664.0,0.0112907]
[1767115975055,0.02555119,88677.0,88664.0,0.0112907]
[1767115975256,0.02555119,88676.0,88664.0,0.0112907]
[1767115975460,0.0112886,88681.0,88661.0,0.011291]
[1767115975650,0.02555133,88680.0,88661.0,0.011291]
[1767115975943,0.02555133,88679.0,88661.0,0.011291]
[1767115976143,0.02555133,88678.0,88661.0,0.011291]
[1767115976358,0.02555133,88677.0,88661.0,0.011291]
[1767115976657,0.02555133,88676.0,88667.0,0.0112903]
[1767115976858,0.09596,88683.0,88667.0,0.0112903]
[1767115977059,0.02555184,88682.0,88667.0,0.0112903]
[1767115977358,0.02555184,88681.0,88664.0,0.0112906]
[1767115977553,0.02555184,88680.0,88664.0,0.0112906]
[1767115977758,0.02555184,88679.0,88664.0,0.0112906]
[1767115977961,0.02555184,88678.0,88664.0,0.0112906]
[1767115978154,0.02555184,88677.0,88664.0,0.0112906]
[1767115978350,0.02555184,88676.0,88664.0,0.0112906]
[1767115978555,0.09596,88683.0,88665.0,0.0112905]
[1767115978756,0.02554892,88682.0,88665.0,0.0112905]
[1767115979058,0.02554892,88681.0,88665.0,0.0112905]
[1767115979259,0.02554892,88680.0,88665.0,0.0112905]
[1767115979567,0.02554892,88679.0,88665.0,0.0112905]
[1767115979754,0.02554892,88678.0,88661.0,0.0679309]
[1767115980052,0.02554892,88677.0,88663.0,0.0112907]
[1767115980252,0.02554892,88676.0,88663.0,0.0112907]
[1767115980453,0.0112884,88682.0,88663.0,0.0112907]
[1767115980659,0.02554899,88681.0,88663.0,0.0112907]
[1767115980853,0.02554899,88680.0,88661.0,0.05664]
[1767115981055,0.02554899,88679.0,88661.0,0.05664]
[1767115981253,0.02554899,88678.0,88661.0,0.05664]
[1767115981469,0.02554899,88677.0,88667.0,0.0112902]
[1767115981654,9e-08,88676.0,88661.0,0.05664]
[1767115981860,0.0112875,88689.0,88670.0,0.0112898]
[1767115982254,0.0112872,88692.0,88672.0,0.0112896]
[1767115982459,0.1526,88695.0,88670.0,0.05664]
[1767115982658,0.0112869,88694.0,88674.0,0.0112893]
[1767115986266,0.0112869,88694.0,88659.0,0.00016926]
[1767115986464,0.0112892,88676.0,88660.0,0.14116]
[1767115986663,0.05664,88683.0,88660.0,0.1524512]
[1767115986858,0.1526,88683.0,88660.0,0.1524512]
[1767115988172,0.0112889,88679.0,88660.0,0.1524512]
[1767115988773,0.0112889,88679.0,88662.0,0.0112908]
[1767115989861,0.0112889,88679.0,88662.0,0.0679308]
[1767115992269,0.1526,88683.0,88660.0,0.0112911]
[1767115992965,0.1526,88683.0,88650.0,0.05664]
[1767115992966,0.0112907,88664.0,88650.0,0.05664]
[1767115993172,0.0112902,88668.0,88651.0,0.0112923]
[1767115993470,0.0112902,88668.0,88650.0,0.05664]
[1767115994065,0.01145936,88668.0,88650.0,0.05680916]
[1767115994264,0.01145936,88668.0,88652.0,0.0112921]
[1767115996872,0.01145936,88668.0,88650.0,0.22502125]
[1767115997068,0.00016916,88668.0,88650.0,0.22502125]
[1767115997269,0.00016916,88668.0,88654.0,0.0112919]
[1767115997971,0.00016916,88668.0,88650.0,0.23631365]
[1767115998175,0.00016916,88668.0,88650.0,0.05680916]
[1767115998964,0.0112907,88664.0,88650.0,0.05680916]
[1767116000066,0.0112904,88667.0,88650.0,0.05680916]
[1767116001266,0.0112904,88667.0,88650.0,0.06810146]
[1767116003577,0.00016916,88668.0,88652.0,0.0112921]
[1767116006372,0.00016916,88668.0,88651.0,0.05664]
[1767116006870,0.1526,88673.0,88659.0,0.0112912]
[1767116007075,0.0112891,88677.0,88659.0,0.0112912]
[1767116008366,0.0112894,88675.0,88656.0,0.0112916]
[1767116010379,0.0112894,88675.0,88658.0,0.0112914]
[1767116010573,0.0112892,88676.0,88658.0,0.0112914]
[1767116013082,0.02476487,88675.0,88658.0,0.0112914]
[1767116013274,0.02476487,88674.0,88658.0,0.0112914]
[1767116013475,0.0112892,88676.0,88658.0,0.0112914]
[1767116013783,0.02476965,88675.0,88658.0,0.0112914]
[1767116013977,0.02476965,88674.0,88658.0,0.0112914]
[1767116014274,0.02477397,88673.0,88658.0,0.0112914]
[1767116014479,0.0112892,88676.0,88658.0,0.0112914]
[1767116014678,0.02477296,88675.0,88658.0,0.0112914]
[1767116014875,0.02477296,88674.0,88658.0,0.0112914]
[1767116015075,0.02477296,88673.0,88658.0,0.0112914]
[1767116015277,0.02477296,88672.0,88658.0,0.0112914]
[1767116015477,0.0112892,88676.0,88658.0,0.0112914]
[1767116015678,0.02478155,88675.0,88658.0,0.0112914]
[1767116015976,0.02478155,88674.0,88658.0,0.0112914]
[1767116016183,0.02478155,88673.0,88658.0,0.0112914]
[1767116016381,0.02478155,88672.0,88658.0,0.0112914]
[1767116016583,0.02478155,88671.0,88658.0,0.0112914]
[1767116016783,0.02478155,88670.0,88658.0,0.0112914]
[1767116016981,0.02478155,88669.0,88658.0,0.0112914]
[1767116017182,0.05664,88678.0,88660.0,0.0112911]
[1767116017384,0.05664,88678.0,88662.0,0.0112909]
[1767116017385,0.02479455,88677.0,88662.0,0.0112909]
[1767116017688,0.02479455,88677.0,88650.0,0.16838125]
[1767116017689,0.05664,88678.0,88661.0,0.011291]
[1767116017986,0.09596,88679.0,88661.0,0.107251]
[1767116018369,0.09596,88679.0,88663.0,0.0112908]
[1767116018571,0.16821209,88673.0,88653.0,0.09596]
[1767116018884,0.16821209,88670.0,88653.0,0.09596]
[1767116019279,0.0112906,88665.0,88653.0,0.09596]
[1767116019683,0.16821209,88670.0,88653.0,0.09596]
[1767116020387,0.0112903,88667.0,88653.0,0.09596]
[1767116022474,0.16821209,88670.0,88653.0,0.09596]
[1767116024191,0.0112901,88669.0,88653.0,0.09596]
[1767116026488,0.16821209,88670.0,88653.0,0.09596]
[1767116026489,0.0112905,88666.0,88653.0,0.09596]
[1767116028588,0.17950209,88670.0,88653.0,0.09596]
[1767116029686,0.0112902,88668.0,88653.0,0.09596]
[1767116033198,0.16821209,88670.0,88653.0,0.09596]
[1767116033390,0.02464521,88669.0,88653.0,0.09596]
[1767116033689,0.16821209,88670.0,88653.0,0.09596]
[1767116033884,0.02464521,88669.0,88653.0,0.09596]
[1767116034088,0.16821209,88670.0,88653.0,0.09596]
[1767116034288,0.02464533,88669.0,88653.0,0.09596]
[1767116034496,0.16821209,88670.0,88653.0,0.09596]
[1767116034798,0.02464533,88669.0,88653.0,0.09596]
[1767116035000,0.16821209,88670.0,88653.0,0.09596]
[1767116035296,0.02464511,88669.0,88653.0,0.09596]
[1767116035499,0.0112901,88669.0,88653.0,0.09596]
[1767116035687,0.0112904,88667.0,88653.0,0.09596]
[1767116037289,0.16821209,88670.0,88653.0,0.09596]
[1767116037290,0.05664,88668.0,88653.0,0.09596]
[1767116037897,0.0679302,88668.0,88653.0,0.09596]
[1767116039491,0.0679302,88668.0,88654.0,0.05664]
[1767116041990,0.05664,88669.0,88654.0,0.05664]
[1767116042196,0.00664,88669.0,88654.0,0.05664]
[1767116043202,0.0112902,88668.0,88654.0,0.05664]
[1767116043501,0.0179301,88669.0,88654.0,0.05664]
[1767116044804,0.0112905,88666.0,88654.0,0.05664]
[1767116045998,0.0179301,88669.0,88654.0,0.05664]
[1767116046202,0.02463831,88668.0,88654.0,0.05664]
[1767116046505,0.0112903,88667.0,88654.0,0.05664]
[1767116046907,0.00664,88669.0,88654.0,0.05664]
[1767116047112,0.02464015,88668.0,88654.0,0.05664]
[1767116047303,0.0112887,88680.0,88654.0,0.05664]
[1767116047609,0.0112889,88678.0,88660.0,0.17950329]
[1767116047810,0.02464051,88677.0,88661.0,0.05664]
[1767116048005,0.08128051,88677.0,88661.0,0.05664]
[1767116048205,0.02464051,88676.0,88661.0,0.05664]
[1767116048596,0.08128051,88675.0,88661.0,0.05664]
[1767116048797,0.02464051,88674.0,88661.0,0.05664]
[1767116049401,0.02464051,88673.0,88661.0,0.05664]
[1767116049604,0.02464051,88672.0,88661.0,0.05664]
[1767116049805,0.02464051,88671.0,88661.0,0.05664]
[1767116050107,0.05664,88675.0,88661.0,0.05664]
[1767116050307,0.02459946,88674.0,88661.0,0.05664]
[1767116050510,0.02459946,88673.0,88661.0,0.05664]
[1767116050705,0.02459946,88672.0,88661.0,0.05664]
[1767116050911,0.05664,88675.0,88661.0,0.05664]
[1767116051211,0.02459807,88674.0,88661.0,0.05664]
[1767116051511,0.02459807,88673.0,88661.0,0.05664]
[1767116051712,0.05664,88675.0,88661.0,0.05664]
[1767116051713,0.02459807,88672.0,88661.0,0.05664]
[1767116052012,0.05664,88675.0,88661.0,0.05664]
[1767116052213,0.02459703,88674.0,88661.0,0.05664]
[1767116052397,0.02459703,88673.0,88661.0,0.05664]
[1767116052602,0.02459703,88672.0,88661.0,0.05664]
[1767116052803,0.05664,88675.0,88661.0,0.05664]
[1767116053004,0.02459614,88674.0,88661.0,0.05664]
[1767116053204,0.02459614,88673.0,88661.0,0.05664]
[1767116053410,0.02459614,88672.0,88661.0,0.05664]
[1767116053611,0.02459614,88671.0,88661.0,0.05664]
[1767116053804,0.02459614,88670.0,88661.0,0.05664]
[1767116054009,0.02459614,88669.0,88661.0,0.05664]
[1767116054205,0.05664,88675.0,88653.0,0.1072521]
[1767116054206,0.02459614,88668.0,88660.0,0.05664]
[1767116054407,0.02459614,88667.0,88660.0,0.05664]
[1767116054615,0.02459614,88666.0,88660.0,0.05664]
[1767116054816,0.01129,88669.0,88660.0,0.05664]
[1767116055011,0.02459778,88668.0,88660.0,0.05664]
[1767116055212,0.02459778,88667.0,88660.0,0.05664]
[1767116055407,0.01129,88669.0,88660.0,0.05664]
[1767116055408,0.02459778,88666.0,88660.0,0.05664]
[1767116055708,0.01129,88669.0,88660.0,0.05664]
[1767116055909,0.02459813,88668.0,88660.0,0.05664]
[1767116056214,0.02459813,88667.0,88660.0,0.05664]
[1767116056414,0.02459813,88666.0,88660.0,0.05664]
[1767116056615,0.01129,88669.0,88660.0,0.05664]
[1767116056814,0.02460341,88668.0,88660.0,0.05664]
[1767116057116,0.02460341,88667.0,88660.0,0.05664]
[1767116057316,0.02460341,88666.0,88660.0,0.05664]
[1767116057516,0.01129,88669.0,88660.0,0.05664]
[1767116057815,0.02460421,88668.0,88660.0,0.05664]
[1767116058015,0.02460421,88667.0,88660.0,0.05664]
[1767116058214,0.02460421,88666.0,88660.0,0.05664]
[1767116058416,0.0112897,88672.0,88660.0,0.05664]
[1767116058615,0.02460361,88671.0,88660.0,0.05664]
[1767116058816,0.02460361,88670.0,88660.0,0.05664]
[1767116059116,0.02460361,88669.0,88660.0,0.05664]
[1767116059314,0.02460361,88668.0,88660.0,0.05664]
[1767116059514,0.02460361,88667.0,88660.0,0.05664]
[1767116059715,0.02460361,88666.0,88660.0,0.05664]
[1767116059918,0.0112897,88672.0,88660.0,0.05664]
[1767116060110,0.02460063,88671.0,88660.0,0.05664]
[1767116060313,0.02460063,88670.0,88660.0,0.05664]
[1767116060513,0.02460063,88669.0,88660.0,0.05664]
[1767116060810,0.02460063,88668.0,88660.0,0.05664]
[1767116061010,0.02460063,88667.0,88660.0,0.05664]
[1767116061208,0.02460063,88666.0,88660.0,0.05664]
[1767116061410,0.0112897,88672.0,88660.0,0.05664]
[1767116061611,0.02458863,88671.0,88660.0,0.05664]
[1767116061911,0.02458863,88670.0,88660.0,0.05664]
[1767116062119,0.02458863,88669.0,88660.0,0.05664]
[1767116062312,0.0679293,88675.0,88660.0,0.05664]
[1767116062815,0.0112896,88673.0,88660.0,0.05664]
[1767116064418,0.09596,88679.0,88660.0,0.05664]
[1767116064622,0.0112893,88676.0,88660.0,0.05664]
[1767116065312,0.0112894,88674.0,88660.0,0.05664]
[1767116067725,0.09596,88679.0,88660.0,0.0679311]
[1767116069225,0.0112893,88675.0,88660.0,0.0679311]
[1767116070329,0.06046313,88685.0,88660.0,0.05664]
[1767116070524,0.1526,88684.0,88662.0,0.0112909]
[1767116070828,0.0112894,88675.0,88664.0,0.00016916]
[1767116071019,0.0112894,88674.0,88664.0,0.00016916]
[1767116071526,0.06046313,88685.0,88664.0,0.00016916]
[1767116071823,0.0112861,88701.0,88670.0,0.16820279]
[1767116072029,0.09596,88706.0,88671.0,0.05664]
[1767116072030,0.0112858,88703.0,88671.0,0.05664]
[1767116072323,0.1072454,88706.0,88687.0,0.0112877]
[1767116072527,0.09596,88706.0,88689.0,0.0112875]
[1767116072838,0.09596,88706.0,88688.0,0.00016916]
[1767116073021,0.0112858,88703.0,88688.0,0.00016916]
[1767116073323,0.09596,88706.0,88688.0,0.00016916]
[1767116073324,0.0112861,88701.0,88688.0,0.00016916]
[1767116075628,0.09596,88706.0,88670.0,0.0112899]
[1767116075629,0.011287,88693.0,88670.0,0.0112899]
[1767116075830,0.09596,88706.0,88671.0,0.1526]
[1767116076026,0.03544548,88705.0,88671.0,0.1526]
[1767116076226,0.02415988,88704.0,88671.0,0.1526]
[1767116076430,0.0112871,88693.0,88672.0,0.0112896]
[1767116076818,0.00016916,88691.0,88674.0,0.00016916]
[1767116077524,0.0112876,88689.0,88674.0,0.00016916]
[1767116077725,0.01145646,88691.0,88674.0,0.00016916]
[1767116079839,0.00016916,88691.0,88675.0,0.0112892]
[1767116080024,0.01145656,88691.0,88674.0,0.00016916]
[1767116085138,0.00016916,88691.0,88674.0,0.00016916]
[1767116085729,0.0112874,88690.0,88674.0,0.00016916]
[1767116086638,0.00016916,88691.0,88674.0,0.00016916]
[1767116086837,0.00016916,88691.0,88679.0,0.0112887]
[1767116087237,0.00016916,88691.0,88676.0,0.0112891]
[1767116087535,0.00016916,88691.0,88674.0,0.00016916]
[1767116088137,0.00016916,88691.0,88679.0,0.0112887]
[1767116089039,0.00016916,88691.0,88681.0,0.0112884]
[1767116094942,0.00016916,88691.0,88683.0,0.0112882]
[1767116095143,0.00016916,88691.0,88681.0,0.0112884]
[1767116095645,0.00016916,88691.0,88674.0,0.00016916]
[1767116096148,0.00016916,88691.0,88679.0,0.0112887]
[1767116099547,0.09592,88698.0,88675.0,0.0112892]
[1767116099850,0.09592,88698.0,88674.0,0.00016916]
[1767116100243,0.0112859,88702.0,88674.0,0.00016916]
[1767116100443,0.02396325,88701.0,88674.0,0.00016916]
[1767116100653,0.02396325,88700.0,88674.0,0.00016916]
[1767116100846,0.06069547,88715.0,88674.0,0.00016916]
[1767116100847,5e-08,88699.0,88674.0,0.00016916]
[1767116101046,0.0112845,88713.0,88694.0,0.0112867]
[1767116101249,0.0112845,88713.0,88695.0,0.00016916]
[1767116101448,0.06069547,88721.0,88695.0,0.00016916]
[1767116101752,0.06069547,88723.0,88707.0,0.0112852]
[1767116101943,0.08105329,88732.0,88695.0,0.00016916]
[1767116101944,0.0566,88728.0,88700.0,0.15252]
[1767116102147,0.06069547,88730.0,88709.0,0.0112848]
[1767116102340,0.011282,88732.0,88710.0,0.0112848]
[1767116102946,0.15252,88731.0,88700.0,0.15252]
[1767116103253,0.15252,88731.0,88706.0,0.0112853]
[1767116103439,0.0112823,88730.0,88706.0,0.0112853]
[1767116106153,0.0112823,88730.0,88701.0,0.01127]
[1767116107653,0.052,88731.0,88701.0,0.01127]
[1767116109256,0.052,88731.0,88708.0,0.011285]
[1767116109456,0.052,88731.0,88710.0,0.0112848]
[1767116109656,0.052,88731.0,88710.0,0.0678848]
[1767116112161,0.0112823,88730.0,88710.0,0.0566]
[1767116112755,0.0678823,88730.0,88710.0,0.0566]
[1767116112957,0.02332086,88729.0,88710.0,0.0566]
[1767116113157,0.0678823,88730.0,88710.0,0.0566]
[1767116114562,0.0678824,88730.0,88710.0,0.0566]
[1767116114950,0.0566,88730.0,88710.0,0.0678847]
[1767116115665,0.0112825,88728.0,88710.0,0.0566]
[1767116115863,0.08105329,88762.0,88711.0,0.09592]
[1767116116163,0.0112788,88758.0,88728.0,0.00016906]
[1767116116363,0.17584468,88761.0,88706.0,0.06096332]
[1767116116364,0.17584468,88757.0,88706.0,0.06096332]
[1767116116666,0.0112825,88729.0,88710.0,0.16797096]
[1767116117463,0.00016874,88728.0,88711.0,0.00016906]
[1767116118059,0.01145134,88728.0,88711.0,0.00016906]
[1767116119062,0.00016874,88728.0,88712.0,0.0112845]
[1767116119366,0.00016874,88728.0,88711.0,0.00016906]
[1767116119566,0.00016874,88728.0,88711.0,0.01145366]
[1767116120968,0.00016874,88728.0,88718.0,0.16797096]
[1767116121661,0.00016874,88728.0,88719.0,0.0112837]
[1767116121860,0.00016874,88728.0,88718.0,0.16797096]
[1767116122064,0.0112809,88741.0,88721.0,0.0112834]
[1767116122369,0.14276,88743.0,88725.0,0.0112828]
[1767116122568,0.0112808,88742.0,88725.0,0.0112828]
[1767116122771,0.0112808,88742.0,88722.0,0.0112832]
[1767116122964,0.0112811,88740.0,88722.0,0.0112832]
[1767116123164,0.14276,88743.0,88722.0,0.01145226]
[1767116123165,0.0112809,88741.0,88722.0,0.01145226]
[1767116123957,0.0112817,88735.0,88722.0,0.00016906]
[1767116124259,0.0112829,88726.0,88710.0,0.16797096]
[1767116124465,0.09588,88737.0,88711.0,0.15244]
[1767116124770,0.0112816,88736.0,88717.0,0.0112839]
[1767116125161,0.09588,88737.0,88719.0,0.0112836]
[1767116125363,0.10733046,88737.0,88720.0,0.16797096]
[1767116125569,0.06801046,88737.0,88720.0,0.16797096]
[1767116127270,0.05672906,88737.0,88723.0,0.0112831]
[1767116127570,0.05672906,88737.0,88720.0,0.17925446]
[1767116127962,0.05672906,88737.0,88720.0,0.16797096]
[1767116128564,0.05672906,88737.0,88721.0,0.0112834]
[1767116129371,0.05672906,88737.0,88720.0,0.16797096]
[1767116129762,0.0112815,88736.0,88720.0,0.16797096]
[1767116130066,0.05672906,88737.0,88720.0,0.16797096]
[1767116130067,0.00016906,88737.0,88724.0,0.011283]
[1767116132068,0.00016906,88737.0,88719.0,6e-08]
[1767116132069,0.0112835,88721.0,88719.0,6e-08]
[1767116132266,0.0112846,88712.0,88701.0,0.01127]
[1767116132469,0.16794699,88711.0,88701.0,0.01127]
[1767116132874,0.05656,88712.0,88701.0,0.01127]
[1767116133179,0.00016906,88715.0,88701.0,0.01127]
[1767116133474,0.00016906,88715.0,88700.0,0.16794699]
[1767116133675,0.00016906,88715.0,88700.0,0.17923299]
[1767116133876,0.00016906,88715.0,88700.0,0.16794699]
[1767116134576,0.00016906,88715.0,88699.0,0.0112861]
[1767116136480,0.0112847,88711.0,88700.0,0.01127]
[1767116136671,0.17923189,88710.0,88700.0,0.01127]
[1767116136868,0.0112849,88710.0,88700.0,0.01127]
[1767116137468,0.16794699,88710.0,88700.0,0.01127]
[1767116137777,0.05656,88712.0,88700.0,0.01127]
[1767116137973,0.00016906,88715.0,88700.0,0.01127]
[1767116138280,0.15244,88714.0,88704.0,0.0112856]
[1767116138874,0.05656,88714.0,88704.0,0.0112856]
[1767116139081,0.05622188,88714.0,88701.0,0.0112859]
[1767116141478,0.05622188,88714.0,88700.0,0.17921699]
[1767116142074,0.00016906,88715.0,88700.0,0.19050299]
[1767116144881,0.00016906,88715.0,88700.0,0.022556]
[1767116145082,0.00016906,88715.0,88700.0,0.19050299]
[1767116145286,0.00016906,88715.0,88700.0,0.01127]
[1767116146488,0.00016906,88715.0,88701.0,0.0112859]
[1767116146780,0.00016906,88715.0,88700.0,0.01127]
[1767116149286,0.00016906,88715.0,88701.0,0.0112859]
[1767116152903,0.00016906,88715.0,88702.0,0.01127]
[1767116154902,0.01145326,88715.0,88702.0,0.01127]
[1767116155094,0.0112845,88713.0,88702.0,0.01127]
[1767116156403,0.00016906,88715.0,88702.0,0.01127]
[1767116156605,0.02470241,88714.0,88702.0,0.01127]
[1767116156803,0.00016906,88715.0,88702.0,0.01127]
[1767116157103,0.02470238,88714.0,88702.0,0.01127]
[1767116157299,0.02470792,88713.0,88702.0,0.01127]
[1767116157500,0.00016906,88715.0,88702.0,0.01127]
[1767116157702,0.02470792,88714.0,88702.0,0.01127]
[1767116157998,0.02470792,88713.0,88702.0,0.01127]
[1767116158205,0.02470792,88713.0,88683.0,0.0112882]
[1767116158206,0.19265507,88712.0,88683.0,0.0112882]
[1767116158401,0.16794699,88700.0,88671.0,0.08111211]
[1767116158600,0.09256662,88699.0,88672.0,0.15248]
[1767116158802,0.17724042,88698.0,88673.0,0.0678894]
[1767116159000,0.17724042,88697.0,88673.0,0.0678894]
[1767116159306,0.0112872,88692.0,88676.0,0.00016906]
[1767116159610,0.02472042,88691.0,88676.0,0.00016906]
[1767116160002,0.02472042,88691.0,88677.0,0.011289]
[1767116160202,0.02472042,88691.0,88676.0,0.00016906]
[1767116160607,0.02472042,88691.0,88676.0,0.01145816]
[1767116161108,0.0112872,88692.0,88676.0,0.01145816]
[1767116161406,0.02472575,88691.0,88676.0,0.00016906]
[1767116161595,0.00016906,88694.0,88676.0,0.00016906]
[1767116161792,0.02472574,88693.0,88677.0,0.011289]
[1767116161996,0.02472574,88692.0,88677.0,0.011289]
[1767116162203,0.02472574,88691.0,88677.0,0.011289]
[1767116162402,0.00016906,88694.0,88677.0,0.011289]
[1767116162597,0.02471934,88693.0,88677.0,0.011289]
[1767116162797,0.02471934,88692.0,88677.0,0.011289]
[1767116162997,0.02471934,88691.0,88677.0,0.011289]
[1767116163197,0.00016906,88694.0,88677.0,0.011289]
[1767116167311,0.00016906,88694.0,88676.0,0.00016906]
[1767116168410,0.00016906,88694.0,88680.0,0.0112886]
[1767116171417,0.00016906,88694.0,88682.0,0.0112883]
[1767116171807,0.00016906,88694.0,88679.0,0.0112887]
[1767116172005,0.00016906,88694.0,88676.0,0.00016906]
[1767116174214,0.00016906,88694.0,88680.0,0.0112886]
[1767116177420,0.16794699,88690.0,88676.0,0.00016906]
[1767116177614,0.17923439,88690.0,88676.0,0.00016906]
[1767116177824,0.16794699,88690.0,88676.0,0.00016906]
[1767116178520,0.011287,88693.0,88676.0,0.00016906]
[1767116182614,0.00016906,88694.0,88676.0,0.00016906]
[1767116182822,0.00016906,88694.0,88677.0,0.011289]
[1767116183023,0.00016906,88694.0,88676.0,0.00016906]
[1767116183024,0.00016906,88694.0,88678.0,0.0112888]
[1767116184422,0.00016906,88694.0,88676.0,0.00016906]
[1767116185316,0.00016906,88694.0,88684.0,0.0112881]
[1767116185619,0.15252,88699.0,88691.0,0.0112872]
[1767116185824,0.0112846,88712.0,88681.0,0.0112885]
[1767116186018,0.02475347,88711.0,88678.0,0.0112888]
[1767116186221,0.06084498,88731.0,88708.0,0.011285]
[1767116186419,0.15252,88730.0,88715.0,0.0112841]
[1767116186612,0.15252,88729.0,88714.0,0.00016906]
[1767116187024,0.0112828,88727.0,88714.0,0.00016906]
[1767116188624,0.15252,88729.0,88714.0,0.00016906]
[1767116189818,0.0112825,88728.0,88714.0,0.00016906]
[1767116190624,0.0566,88727.0,88714.0,0.00016906]
[1767116190930,0.15252,88727.0,88714.0,0.00016906]
[1767116191129,0.00016906,88731.0,88714.0,0.00016906]
[1767116191630,0.06134267,88754.0,88723.0,0.011283]
[1767116191830,0.0112802,88747.0,88723.0,0.0112831]
[1767116192030,0.15252,88746.0,88725.0,0.0112828]
[1767116192232,0.0112804,88745.0,88725.0,0.0112828]
[1767116192432,0.0112804,88745.0,88714.0,0.00016906]
[1767116192623,0.0112804,88745.0,88724.0,0.011283]
[1767116192825,0.00016906,88738.0,88724.0,0.011283]
[1767116193128,0.05656,88737.0,88720.0,0.0112835]
[1767116193442,0.05656,88737.0,88722.0,0.0112832]
[1767116194329,0.05656,88737.0,88718.0,0.0112837]
[1767116195626,0.05656,88737.0,88720.0,0.0112834]
[1767116196837,0.00016906,88738.0,88727.0,0.0112825]
[1767116198840,0.00016906,88738.0,88723.0,0.011283]
[1767116200143,0.00016906,88738.0,88716.0,0.09592]
[1767116200336,0.00016906,88738.0,88727.0,0.0112825]
[1767116201032,0.00016906,88738.0,88716.0,0.09592]
[1767116201427,0.0112827,88727.0,88716.0,0.09592]
[1767116201627,0.15244,88735.0,88714.0,0.00016906]
[1767116201835,0.03592162,88734.0,88702.0,0.09588]
[1767116202028,0.0112828,88726.0,88704.0,0.0112856]
[1767116202229,0.0112823,88730.0,88703.0,0.09588]
[1767116202538,0.0112819,88733.0,88713.0,0.0112844]
[1767116202740,0.00016906,88732.0,88714.0,0.00016906]
[1767116204043,0.0112822,88731.0,88714.0,0.00016906]
[1767116204836,0.00016906,88732.0,88714.0,6e-08]
[1767116205742,0.0112831,88724.0,88714.0,6e-08]
[1767116206536,0.011283,88724.0,88714.0,6e-08]
[1767116207444,0.0112834,88721.0,88714.0,6e-08]
[1767116207635,0.0112834,88721.0,88703.0,0.09588]
[1767116208453,0.0112834,88721.0,88703.0,0.1071656]
[1767116208642,0.0112834,88721.0,88704.0,0.01127]
[1767116209938,0.0112831,88724.0,88704.0,0.01127]
[1767116211145,0.163723,88725.0,88706.0,0.0112853]
[1767116211347,0.0112832,88723.0,88706.0,0.0112853]
[1767116211642,0.15244,88725.0,88704.0,0.01127]
[1767116211838,0.0112835,88721.0,88704.0,0.01127]
[1767116212038,0.0112835,88721.0,88704.0,0.0225555]
[1767116212438,0.0112837,88719.0,88704.0,0.01127]
[1767116212647,0.011284,88717.0,88704.0,0.01127]
[1767116212848,0.15244,88725.0,88704.0,0.01127]
[1767116212849,0.0112845,88713.0,88704.0,0.01127]
[1767116213342,0.0112836,88720.0,88704.0,0.01127]
[1767116214748,0.0112836,88720.0,88704.0,0.0225555]
[1767116219454,0.0112832,88723.0,88679.0,0.08111211]
[1767116219654,0.0112837,88719.0,88680.0,0.15244]
[1767116219849,0.0112854,88706.0,88690.0,0.0112873]
[1767116220553,0.00016906,88707.0,88694.0,0.0112868]
[1767116220850,0.00016906,88707.0,88691.0,0.0112872]
[1767116221055,0.00016906,88707.0,88693.0,0.0112869]
[1767116222950,0.06052672,88729.0,88690.0,0.09592]
[1767116223150,0.0112843,88715.0,88690.0,0.09592]
[1767116223356,0.1637644,88714.0,88690.0,0.09592]
[1767116223959,0.00016906,88711.0,88690.0,0.09592]
[1767116224458,0.00016906,88711.0,88694.0,0.0112868]
[1767116224657,0.00016906,88711.0,88690.0,0.09592]
[1767116224859,0.00016906,88711.0,88696.0,0.0112865]
[1767116225861,0.00016906,88711.0,88698.0,0.0112863]
[1767116228363,0.15248,88714.0,88690.0,0.1072073]
[1767116228865,0.15248,88714.0,88702.0,0.0112857]
[1767116229555,0.00016906,88717.0,88704.0,0.0112855]
[1767116230856,0.00016906,88717.0,88702.0,0.0112858]
[1767116233170,0.00016906,88717.0,88700.0,0.1072061]
[1767116233666,0.0112843,88715.0,88689.0,0.00016906]
[1767116233872,0.0112868,88695.0,88689.0,6e-08]
[1767116234076,0.0112871,88692.0,88679.0,0.09592]
[1767116234276,0.011287,88693.0,88679.0,0.09592]
[1767116234882,0.0112865,88697.0,88679.0,0.09592]
[1767116235070,0.01145556,88697.0,88680.0,0.0112886]
[1767116237082,0.0112868,88695.0,88679.0,0.09608906]
[1767116237883,0.0112868,88695.0,88679.0,0.10737776]
[1767116238083,0.00016906,88697.0,88679.0,0.10737776]
[1767116238280,0.00016906,88697.0,88681.0,0.0112884]
[1767116238779,0.00016906,88697.0,88679.0,0.09608906]
[1767116238780,0.0112871,88692.0,88679.0,0.00016906]
[1767116239787,0.0112868,88695.0,88679.0,0.00016906]
[1767116240690,0.0112868,88695.0,88680.0,0.0112886]
[1767116242482,0.0112868,88695.0,88679.0,0.00016906]
[1767116242788,0.0112868,88695.0,88679.0,0.01145776]
[1767116244389,0.00016906,88697.0,88681.0,0.0112884]
[1767116244984,0.0112866,88696.0,88679.0,0.00016906]
[1767116246893,0.0112866,88696.0,88680.0,0.0112886]
[1767116248791,0.00016906,88697.0,88679.0,0.00016906]
[1767116249092,0.01145556,88697.0,88682.0,0.0112883]
[1767116249287,0.00016906,88697.0,88679.0,0.00016906]
[1767116249486,0.00016906,88697.0,88682.0,0.0112883]
[1767116249886,0.01145566,88697.0,88680.0,0.16812173]
[1767116250192,0.01145566,88697.0,88679.0,0.01145776]
[1767116254095,0.01145566,88697.0,88682.0,0.0112883]
[1767116255698,0.01145566,88697.0,88679.0,0.01145776]
[1767116256691,0.00016906,88697.0,88679.0,0.00016906]
[1767116256988,0.00016906,88697.0,88684.0,0.0112881]
[1767116257189,0.00016906,88697.0,88681.0,0.0112884]
[1767116257499,0.00016906,88697.0,88683.0,0.0112882]
[1767116257697,0.00016906,88697.0,88685.0,0.0112879]